[Event "Ostravsky Konik FIDE-A 2024"]
[Site "Ostrava"]
[Date "2024.04.27"]
[Round "1.5"]
[White "Litner, Igor"]
[Black "Goluch, Piotr"]
[Result "0-1"]
[ECO "E72"]
[WhiteElo "2000"]
[BlackElo "2325"]
[Annotator "TA"]
[PlyCount "76"]
[EventDate "2024.04.26"]
[EventType "swiss"]
[EventCountry "CZE"]
[SourceTitle "playchess.com"]
[Source "ChessBase"]
[SourceQuality "1"]
[TimeControl "40/5400+30:1800+30"]

{[%evp 18,76,51,28,60,19,31,27,24,15,23,-104,-101,-111,-104,-107,-106,-122,-130,-148,-120,-212,-141,-135,-141,-156,-158,-185,-112,-214,-231,-307,-265,-260,-297,-304,-300,-337,-245,-319,-285,-326,-291,-682,-384,-370,-136,-125,-146,-139,-129,-128,-122,-133,-135,-239,-239,-581,-578,-578,-566]} 1. d4 {[%emt 0:00:04]} Nf6 {[%emt 0:00:10]} 2. c4 {[%emt 0:00:06]} g6 {[%emt 0:00:18]} 3. Nc3 {[%emt 0:00:21]} Bg7 {[%emt 0:00:06]} 4. g3 {[%emt 0:00:39]} O-O {[%emt 0:00:07]} 5. Bg2 {[%emt 0:00:04]} c6 {[%emt 0:01:32]} 6. e4 {[%emt 0:00:52]} d6 {[%emt 0:00:39]} 7. Nge2 {[%emt 0:00:08]} e5 {[%emt 0:00:52]} 8. O-O {[%emt 0:00:09]} Nbd7 {[%emt 0:04:06]} 9. h3 {[%emt 0:08:51]} Re8 {[%emt 0:00:36]} 10. Be3 {[%emt 0:01:43]} a5 {[%emt 0:01:02][%cal Ba7a5,Ba5a4][%mdl 32]} 11. Qd2 {[%emt 0:00:26]} exd4 {[%emt 0:09:08]} 12. Bxd4 {[%emt 0:01:57]} a4 {[%emt 0:12:16] White has an edge.} 13. Rad1 {[%emt 0:04:36]} Qa5 {[%emt 0:01:41]} 14. Be3 {[%emt 0:08:37]} (14. Qc2 $11 {keeps the balance.}) 14... Ne5 $1 $17 {[%emt 0:00:32]} 15. b3 {[%emt 0:01:26]} (15. Qxd6 $2 Nxc4 16. Qc5 Qxc5 (16... Nxb2 17. Qxa5 Rxa5 18. Rc1 $19) 17. Bxc5 Nxb2 $19) 15... axb3 {[%emt 0:01:06]} (15... Bxh3 {seems wilder.} 16. f3 Bxg2 17. Kxg2 axb3 18. axb3 Qa3) 16. axb3 {[%emt 0:00:14][%cal Of2f4] [#]} Bxh3 $1 {[%emt 0:00:23][%mdl 512]} 17. Qxd6 {[%emt 0:01:40]} (17. f3 Bxg2) 17... Bxg2 {[%emt 0:02:06]} 18. Kxg2 {[%emt 0:00:03][%cal Od1a1]} Nfg4 $1 {[%emt 0:00:10] And now ...Nxe3+ would win.} 19. Qc5 {[%emt 0:04:52]} (19. Bc1 $17 {was called for.}) 19... Bf8 {[%emt 0:01:10]} 20. Qb6 {[%emt 0:01:24]} Ra6 {[%emt 0:00:21]} 21. Qd4 {[%emt 0:05:15] [#]} Nh2 $1 {[%emt 0:00:09][%mdl 512] aiming for ...Nhf3. Black has more active pieces.} 22. Ra1 {[%emt 0:05:38]} Qb4 {[%emt 0:07:31]} (22... Qxa1 $2 23. Rxa1 Rxa1 24. Nd5 (24. Kxh2 $2 Nf3+ 25. Kg2 Nxd4 $19) 24... cxd5 25. Qxa1 $18) (22... Nxf1 23. Rxa5 Nxe3+ 24. Qxe3 $11) (22... Qc7 $1 $19 23. Rxa6 (23. Kxh2 $2 Nf3+ 24. Kg2 Nxd4 $19) 23... Nxf1) 23. Rxa6 {[%emt 0:00:28]} (23. Kxh2 Nf3+ (23... Qxb3 $2 24. Kg2 $18) 24. Kg2 Nxd4 $19) (23. Rfc1 $17 Nhf3 24. Qd1) 23... Nxf1 $19 {[%emt 0:00:06]} ({Much less strong is} 23... bxa6 24. Rb1 $15) 24. Rb6 {[%emt 0:00:08]} Nxe3+ {[%emt 0:00:05]} 25. Qxe3 {[%emt 0:00:01] [#]} Ng4 $1 {[%emt 0:03:18]} 26. Qd4 {[%emt 0:02:24]} Qe7 {[%emt 0:54:00]} 27. f3 {[%emt 0:07:02]} Ne5 {[%emt 0:00:30]} 28. f4 {[%emt 0:12:30]} Ng4 {[%emt 0:00:00]} 29. e5 {[%emt 0:33:22]} f6 {[%emt 0:00:00][%cal Rf6e5]} 30. e6 $2 {[%emt 0:00:00]} (30. Ne4 fxe5 31. fxe5 Nxe5 32. c5) 30... Qc7 {[%emt 0:00:00]} 31. Kh3 {[%emt 0:00:00] [#]} ({Don't go for} 31. Qd7 $2 Qxb6 32. Qf7+ Kh8 $19) 31... f5 {[%emt 0:00:00]} (31... Rxe6 $1 $19 {is more deadly.} 32. c5 (32. Kxg4 $2 {too greedy.} c5 $19) 32... Ne3) 32. Qd7 $17 {[%emt 0:00:00]} Re7 {[%emt 0:00:00] Dancing on a razor blade.} 33. Qxc7 {[%emt 0:00:00]} Rxc7 {[%emt 0:00:00]} 34. Na4 {[%emt 0:00:00] Against Bc5} Nf2+ {[%emt 0:00:00]} 35. Kg2 {[%emt 0:00:00]} Nd3 {[%emt 0:00:00] Strongly threatening ...Bb4.} 36. Kf3 {[%emt 0:00:00] [#]} (36. b4 $17 {was necessary.}) 36... Nc5 $1 $19 {[%emt 0:00:00]} 37. Nd4 $2 {[%emt 0:00:00]} (37. Nec3 {is a better chance.}) 37... Nxa4 {[%emt 0:00:00]} 38. bxa4 {[%emt 0:00:00]} Bc5 $1 {[%emt 0:00:00][%csl LRb6,LRd4] Weighted Error Value: White=0.68/Black=0.32.  Mistake:       	White=6     	Black=1      Inaccurate:     	White=3     	Black=2      OK:         	White=5     	Black=11     Best:        	White=3     	Black=4      Strong:       	---       	Black=1      Brilliant:      	---       	Black=1} 0-1

[Event "Ostravsky Konik FIDE-A 2024"]
[Site "Ostrava"]
[Date "2024.04.27"]
[Round "1.6"]
[White "Bujnoch, Radek"]
[Black "Llopis de Aysa, Manuel"]
[Result "1-0"]
[ECO "A90"]
[WhiteElo "2307"]
[BlackElo "1996"]
[Annotator "TA"]
[PlyCount "139"]
[EventDate "2024.04.26"]
[EventType "swiss"]
[EventCountry "CZE"]
[SourceTitle "playchess.com"]
[Source "ChessBase"]
[SourceQuality "1"]
[TimeControl "40/5400+30:1800+30"]

{[%evp 17,139,21,18,12,27,21,20,10,11,13,33,38,45,34,33,33,30,27,29,0,0,8,6,-6,-3,0,0,0,47,49,41,52,47,45,39,0,0,-44,-19,-12,-12,-36,-57,-44,48,18,47,47,47,47,47,0,14,14,16,0,26,26,28,28,28,14,26,26,28,14,36,36,36,0,35,35,35,35,76,83,83,77,80,80,74,33,33,33,33,0,0,0,33,33,33,0,33,31,31,0,0,0,0,0,31,31,31,31,98,31,31,31,75,52,50,50,57,57,58,59,1098,1086,1068,1047,987,952,1565,1470]} 1. d4 {[%emt 1:31:00]} e6 {[%emt 1:31:00]} 2. c4 {[%emt 0:00:30]} f5 {[%emt 0:00:30]} 3. g3 {[%emt 0:00:30]} Nf6 {[%emt 0:00:30]} 4. Bg2 {[%emt 0:00:30]} d5 {[%emt 0:00:30]} 5. Nf3 {[%emt 0:00:30][%cal Bg1f3,Bf3e5,Be5c4][%mdl 32]} c6 {[%emt 0:00:30]} 6. O-O {[%emt 0:00:30]} Bd6 {[%emt 0:00:30]} 7. b3 {[%emt 0:00:30]} Qe7 {[%emt 0:00:30]} 8. Qc2 {[%emt 0:00:30]} O-O {[%emt 0:00:30]} 9. Ne5 {[%emt 0:00:30]} b6 {[%emt 0:00:30]} 10. cxd5 {[%emt 0:00:30]} cxd5 {[%emt 0:00:30]} 11. Nc4 {[%emt 0:00:30]} Qc7 {[%emt 0:00:30]} 12. Qb2 {[%emt 0:00:30] The position is equal.} Be7 {[%emt 0:00:30]} 13. Bf4 {[%emt 0:00:30]} Qd8 {[%emt 0:00:30]} 14. Ne5 {[%emt 0:00:30] Against Nc6} Nfd7 {[%emt 0:00:30]} 15. Nd3 {[%emt 0:00:30]} Nc6 {[%emt 0:00:30]} 16. Nd2 Ba6 {[%emt 0:00:30]} 17. Nf3 {[%emt 0:01:00]} Rc8 {[%emt 0:00:30]} 18. a3 {[%emt 0:00:30]} Bxd3 {[%emt 0:00:30]} 19. exd3 {[%emt 0:00:30]} g5 {[%emt 0:00:30]} 20. Be3 {[%emt 0:00:30]} g4 {[%emt 0:00:30]} 21. Ne5 {[%emt 0:00:30]} Ncxe5 {[%emt 0:00:30]} 22. dxe5 {[%emt 0:00:30]} Qc7 {[%emt 0:00:30]} (22... Bg5 $11 {was preferrable.}) 23. d4 $14 {[%emt 0:00:30]} Qc2 {[%emt 0:00:30]} 24. Qxc2 {[%emt 0:00:30]} Rxc2 {[%emt 0:00:30]} 25. Rfc1 {[%emt 0:00:30]} Rfc8 {[%emt 0:00:30]} 26. Rxc2 {[%emt 0:00:30]} Rxc2 27. Rc1 {[%emt 0:00:30]} Rxc1+ {[%emt 0:01:00]} 28. Bxc1 $15 {[%emt 0:00:30][%mdl 4096] Endgame. KBB-KBN} Nb8 {[%emt 0:00:30]} 29. Bb2 {[%emt 0:00:30]} Nc6 {[%emt 0:00:30]} 30. Bf1 {[%emt 0:00:30]} Nb8 {[%emt 0:00:30]} (30... Na5 $15 31. b4 Nc4 32. Bxc4 (32. Bc1 b5 $17) 32... dxc4) 31. f3 h5 32. b4 {[%cal Bb3b4,Bb4b5][%mdl 32]} Kf7 33. b5 Nd7 34. h3 (34. Kf2 $14) 34... gxh3 35. Bxh3 Nf8 36. Kf2 Ng6 37. Bc1 Bf8 38. Bf1 Be7 39. Be2 Nf8 40. a4 Bb4 41. Bg5 Bc3 42. Ke3 Be1 43. g4 hxg4 44. fxg4 fxg4 45. Bxg4 Nd7 46. Bh5+ {This pair of bishops is nice.} Kf8 47. Kf3 Bc3 {[%emt 0:38:30]} 48. Be3 {[%emt 0:39:00]} Ke7 {[%emt 0:00:30]} 49. Kg4 {[%emt 0:00:30]} Kf8 $1 {[%emt 0:00:30]} 50. Kg5 {[%emt 0:00:30] [#] Black must now prevent Kg6.} Kg7 51. Be8 {[%emt 0:00:30]} Nf8 {[%emt 0:01:00]} 52. Kh5 {[%emt 0:00:30]} Kg8 {[%emt 0:00:30]} 53. Kh6 {[%emt 0:00:30]} Bb2 {[%emt 0:00:30]} 54. Kh5 {[%emt 0:00:30]} Bc3 {[%emt 0:00:30]} 55. Kg4 {[%emt 0:00:30]} Kg7 {[%emt 0:00:30]} 56. Kf3 {[%emt 0:00:30]} Ng6 {[%emt 0:00:30]} 57. Ke2 {[%emt 0:00:30]} Ne7 {[%emt 0:00:30]} 58. Kd3 {[%emt 0:00:30]} Bb4 {[%emt 0:00:30]} 59. Bg5 {[%emt 0:00:30]} Kf8 {[%emt 0:00:30]} 60. Bh5 {[%emt 0:00:30]} Ba3 {[%emt 0:00:30]} ({Better is} 60... Nf5 $14) 61. Kc3 {[%emt 0:00:30] White is more active.} (61. Bh6+ $16 Kg8 62. Bd2) 61... Nf5 $14 {[%emt 0:00:30]} 62. Bd8 {[%emt 0:00:30]} Ne7 {[%emt 0:00:30]} 63. Kb3 {[%emt 0:00:30]} Bc1 {[%emt 0:00:30]} 64. a5 {[%emt 0:00:30]} bxa5 {[%emt 0:00:30]} 65. Bxa5 {[%emt 0:00:30] Strongly threatening Bb4.} Be3 {[%emt 0:00:30]} 66. Kc3 {[%emt 0:00:30] Hoping for Bb4.} Nf5 $2 {[%emt 0:00:30][%mdl 8192] [#] Loses the game.} (66... Bf2 $14 67. Kd3 Kg7) 67. Bb4+ $1 $18 {[%emt 0:00:30] White is clearly winning.} Kg8 {[%emt 0:00:30]} 68. Bc5 {[%emt 0:00:30]} Ng3 {[%emt 0:00:30]} 69. Bf3 {[%emt 0:00:30]} Kf7 {[%emt 0:00:30]} 70. Bxa7 {[%emt 0:00:30] Weighted Error Value: White=0.09 (flawless) /Black=0.11 (very precise) .  Loses game:     	---       	Black=1      Mistake:       	White=2     	Black=3      Inaccurate:     	White=8     	Black=7      OK:         	White=17    	Black=26     Best:        	White=1     	Black=4      Strong:       	White=1     	Black=1} 1-0

[Event "Ostravsky Konik FIDE-A 2024"]
[Site "Ostrava"]
[Date "2024.04.28"]
[Round "2.2"]
[White "Warchol, Kamil"]
[Black "Nguyen, Piotr"]
[Result "*"]
[ECO "C02"]
[WhiteElo "2149"]
[BlackElo "2398"]
[Annotator "RC"]
[PlyCount "37"]
[EventDate "2024.04.26"]
[EventType "swiss"]
[EventCountry "CZE"]
[SourceTitle "playchess.com"]
[Source "ChessBase"]
[SourceQuality "1"]
[TimeControl "40/5400+30:1800+30"]

1. e4 {[%emt 0:00:04]} e6 {[%emt 0:00:18]} 2. d4 {[%emt 0:00:07]} d5 {[%emt 0:00:03]} 3. e5 {[%emt 0:00:10]} c5 {[%emt 0:00:04]} 4. c3 {[%emt 0:00:07]} Nc6 {[%emt 0:00:03]} 5. Nf3 {[%emt 1:32:32]} Bd7 {[%emt 0:00:16]} 6. Bd3 {[%emt 0:00:12]} cxd4 {[%emt 0:00:55]} 7. O-O {[%emt 0:00:19]} dxc3 {[%emt 1:32:21]} 8. Nxc3 {[%emt 0:00:09]} Bc5 {[%emt 0:02:55]} 9. a3 {[%emt 0:01:20]} a5 {[%emt 0:20:47]} 10. Qe2 {[%emt 0:05:03]} Nge7 {[%emt 0:03:18]} 11. h4 {[%emt 0:01:58]} Nd4 {[%emt 0:08:13]} 12. Nxd4 {[%emt 0:04:20]} Bxd4 {[%emt 0:00:02]} 13. Nb5 {[%emt 0:06:15]} Bxb5 {[%emt 0:02:55]} 14. Bxb5+ {[%emt 0:00:06]} Nc6 {[%emt 0:55:46]} 15. Bg5 {[%emt 0:05:16]} Qb6 {[%emt 0:05:51]} 16. h5 {[%emt 0:12:16]} h6 {[%emt 0:06:56]} 17. Bf4 {[%emt 0:02:53]} O-O {[%emt 0:05:31]} 18. a4 {[%emt 0:01:02]} f6 {[%emt 0:07:45]} 19. Bxc6 {[%emt 0:10:52]} *

[Event "Ostravsky Konik FIDE-A 2024"]
[Site "Ostrava"]
[Date "2024.04.28"]
[Round "2.3"]
[White "Romanishin, Oleg M"]
[Black "Tymrakiewicz, Rafal"]
[Result "1/2-1/2"]
[ECO "C54"]
[WhiteElo "2372"]
[BlackElo "2135"]
[Annotator "TA"]
[PlyCount "38"]
[EventDate "2024.04.26"]
[EventType "swiss"]
[EventCountry "CZE"]
[SourceTitle "playchess.com"]
[Source "ChessBase"]
[SourceQuality "1"]
[TimeControl "40/5400+30:1800+30"]

{[%evp 10,38,16,18,17,8,10,9,27,27,37,30,31,33,29,38,64,-8,-16,-15,-28,-9,-6,-68,-61,-54,-60,-58,-63,-84,-79]} 1. e4 {[%emt 0:00:05]} e5 {[%emt 0:00:07]} 2. Nf3 {[%emt 0:00:36]} Nc6 {[%emt 0:00:07]} 3. Bc4 {[%emt 0:00:26]} Bc5 {[%emt 0:00:10]} 4. d3 {[%emt 0:00:48]} Nf6 {[%emt 0:00:31]} 5. c3 {[%emt 0:01:41]} O-O {[%emt 0:01:28]} 6. Nbd2 {[%emt 0:03:12]} a5 {[%emt 0:07:36]} 7. a4 {[%emt 0:02:37]} Ba7 {[%emt 0:02:16]} 8. O-O {[%emt 0:04:58]} Kh8 {[%emt 0:07:32] The position is equal.} 9. h3 {[%emt 0:12:33]} d5 {[%emt 0:03:38]} 10. Bb5 {[%emt 0:05:06]} Ne7 {[%emt 0:11:57]} 11. exd5 {[%emt 0:05:03]} (11. Nxe5 $2 {perishes.} c6 12. Bc4 dxc4 13. Ndxc4 Nd7 $19) 11... Ng6 {[%emt 0:00:31]} 12. Re1 {[%emt 0:06:55]} Qxd5 {[%emt 0:03:08]} 13. Ne4 {[%emt 0:04:22]} ({White should play} 13. Bc4 $14 Qd6 14. b3) 13... Nxe4 $11 {[%emt 0:10:06]} 14. dxe4 {[%emt 0:02:11]} Qxd1 {[%emt 0:00:06]} 15. Rxd1 {[%emt 0:00:16]} Be6 {[%emt 0:00:04] Prevents Bc4} 16. Be3 {[%emt 0:09:43] Wards off Bc5} (16. b4 $11) 16... Bxe3 $15 {[%emt 0:02:19]} 17. fxe3 {[%emt 0:01:07]} f6 {[%emt 0:06:11]} 18. Rd2 {[%emt 0:04:56]} Kg8 {[%emt 0:04:38]} 19. Bd3 {[%emt 0:02:50]} Ne7 {[%emt 0:03:40] Weighted Error Value: White=0.20 (precise) /Black=0.04 (flawless) .  Mistake:       	White=2     	---        Inaccurate:     	---       	Black=1      OK:         	White=3     	Black=6      Best:        	---       	Black=2} 1/2-1/2

[Event "Ostravsky Konik FIDE-A 2024"]
[Site "Ostrava"]
[Date "2024.04.28"]
[Round "2.3"]
[White "Warchol, Kamil"]
[Black "Tymrakiewicz, Rafal"]
[Result "1/2-1/2"]
[ECO "C54"]
[WhiteElo "2149"]
[BlackElo "2135"]
[Annotator "TA"]
[PlyCount "38"]
[EventDate "2024.04.26"]
[EventType "swiss"]
[EventCountry "CZE"]
[SourceTitle "playchess.com"]
[Source "ChessBase"]
[SourceQuality "1"]
[TimeControl "40/5400+30:1800+30"]

{[%evp 10,38,25,13,18,7,14,8,15,16,21,28,26,5,12,29,51,-15,-5,-10,-16,-2,-10,-50,-59,-56,-56,-70,-52,-73,-82]} 1. e4 {[%emt 0:00:05]} e5 {[%emt 0:00:07]} 2. Nf3 {[%emt 0:00:36]} Nc6 {[%emt 0:00:07]} 3. Bc4 {[%emt 0:00:26]} Bc5 {[%emt 0:00:10]} 4. d3 {[%emt 0:00:48]} Nf6 {[%emt 0:00:31]} 5. c3 {[%emt 0:01:41]} O-O {[%emt 0:01:28]} 6. Nbd2 {[%emt 0:03:12]} a5 {[%emt 0:07:36]} 7. a4 {[%emt 0:02:37]} Ba7 {[%emt 0:02:16]} 8. O-O {[%emt 0:04:58]} Kh8 {[%emt 0:07:32] The position is equal.} 9. h3 {[%emt 0:12:33]} d5 {[%emt 0:03:38]} 10. Bb5 {[%emt 0:05:06]} Ne7 {[%emt 0:11:57] ...c6 would now be deadly.} 11. exd5 {[%emt 0:05:03]} (11. Nxe5 $2 {perishes.} c6 12. Bc4 dxc4 13. Ndxc4 Nd7 $19) 11... Ng6 $1 {[%emt 0:00:31]} 12. Re1 {[%emt 0:06:55]} Qxd5 {[%emt 0:03:08]} 13. Ne4 {[%emt 0:04:22]} (13. Bc4 $14 Qd6 14. b3) 13... Nxe4 $11 {[%emt 0:10:06]} 14. dxe4 {[%emt 0:02:11]} Qxd1 {[%emt 0:00:06]} 15. Rxd1 {[%emt 0:00:16]} Be6 {[%emt 0:00:04] Wards off Bc4} 16. Be3 {[%emt 0:09:43]} Bxe3 {[%emt 0:02:19]} 17. fxe3 {[%emt 0:01:07]} f6 {[%emt 0:06:11]} 18. Rd2 {[%emt 0:04:56]} Kg8 {[%emt 0:04:38]} 19. Bd3 {[%emt 0:02:50]} Ne7 {[%emt 0:03:40] Weighted Error Value: White=0.18 (very precise) /Black=0.04 (flawless) .  Mistake:       	White=1     	---        Inaccurate:     	White=1     	---        OK:         	White=1     	Black=5      Best:        	---       	Black=1      Strong:       	---       	Black=1} 1/2-1/2

[Event "Ostravsky Konik FIDE-A 2024"]
[Site "Ostrava"]
[Date "2024.04.28"]
[Round "2.4"]
[White "Fizer, Marek"]
[Black "Sernecki, Franciszek"]
[Result "1/2-1/2"]
[ECO "A46"]
[WhiteElo "2096"]
[BlackElo "2342"]
[Annotator "TA"]
[PlyCount "39"]
[EventDate "2024.04.26"]
[EventType "swiss"]
[EventCountry "CZE"]
[SourceTitle "playchess.com"]
[Source "ChessBase"]
[SourceQuality "1"]
[TimeControl "40/5400+30:1800+30"]

{[%evp 9,39,18,29,13,30,16,17,20,2,13,33,0,0,0,0,0,0,-29,0,0,-5,0,23,24,20,8,13,7,14,0,25,-135]} 1. d4 {[%emt 0:01:43]} Nf6 {[%emt 0:02:20]} 2. Nf3 {[%emt 0:00:06]} d6 {[%emt 0:01:27]} 3. g3 {[%emt 0:00:17]} Nbd7 {[%emt 0:01:08]} 4. Bg2 {[%emt 0:00:48]} e5 {[%emt 0:00:45][%cal Be7e5,Be5e4][%mdl 32]} 5. O-O {[%emt 0:02:16]} e4 {[%emt 0:06:46]} 6. Nh4 {[%emt 0:03:02]} Nb6 {[%emt 0:04:49]} 7. a4 {[%emt 0:11:37]} a5 {[%emt 0:25:23]} 8. Nc3 {[%emt 0:03:13] The position is equal.} d5 {[%emt 0:03:07]} 9. f3 {[%emt 0:01:08]} exf3 {[%emt 0:03:42]} 10. exf3 {[%emt 0:04:27]} Be7 {[%emt 0:01:15]} 11. b3 {[%emt 0:04:40]} O-O {[%emt 0:02:07]} 12. Qd3 {[%emt 0:00:25]} Re8 {[%emt 0:04:30]} 13. Bd2 {[%emt 0:00:32]} Be6 {[%emt 0:06:50]} 14. Rae1 {[%emt 0:01:09]} c5 {[%emt 0:12:26]} 15. dxc5 {[%emt 0:01:02]} Bxc5+ {[%emt 0:00:07]} 16. Kh1 {[%emt 0:00:04]} Qd7 {[%emt 0:02:58]} 17. Nb5 {[%emt 0:07:55]} d4 {[%emt 0:02:31] Prevents Bc3} 18. f4 {[%emt 0:03:14]} Bh3 {[%emt 0:02:20]} 19. Bxh3 {[%emt 0:36:19]} Qxh3 {[%emt 0:00:18]} 20. Qf3 $2 {[%emt 0:16:33] Weighted Error Value: White=0.09 (flawless) /Black=0.06 (flawless) .  Mistake:       	White=1     	---        Inaccurate:     	White=2     	Black=1      OK:         	White=4     	Black=7      Best:        	White=1     	Black=1} (20. Nf3 $11) 1/2-1/2

[Event "Ostravsky Konik FIDE-A 2024"]
[Site "Ostrava"]
[Date "2024.04.28"]
[Round "2.5"]
[White "Goluch, Piotr"]
[Black "Backiel, Hubert"]
[Result "1/2-1/2"]
[ECO "E04"]
[WhiteElo "2325"]
[BlackElo "2129"]
[Annotator "TA"]
[PlyCount "31"]
[EventDate "2024.04.26"]
[EventType "swiss"]
[EventCountry "CZE"]
[SourceTitle "playchess.com"]
[Source "ChessBase"]
[SourceQuality "1"]
[TimeControl "40/5400+30:1800+30"]

{[%evp 12,31,17,0,56,-4,-4,0,0,0,25,-48,-15,-20,0,-16,0,-28,0,-18,0,-38]} 1. d4 {[%emt 0:00:04]} d5 {[%emt 0:00:49]} 2. Nf3 {[%emt 0:00:55]} Nf6 {[%emt 0:00:08]} 3. c4 {[%emt 0:00:06]} e6 {[%emt 0:00:03]} 4. g3 {[%emt 0:02:00]} dxc4 {[%emt 0:00:06]} 5. Bg2 {[%emt 0:00:03]} Nc6 {[%emt 0:00:16]} 6. O-O {[%emt 0:01:10]} Rb8 {[%emt 0:00:19]} 7. e3 {[%emt 0:03:55][%mdl 1024] White has compensation.} b6 {[%emt 0:15:36]} ({Black should play} 7... Be7 $11) 8. Nfd2 {[%emt 0:09:29]} (8. Qe2 $14) 8... Na5 $11 {[%emt 0:02:07]} 9. Qc2 {[%emt 0:20:39]} Ba6 {[%emt 0:02:16]} 10. Rd1 {[%emt 0:00:06]} Be7 {[%emt 0:03:02]} 11. a4 {[%emt 0:05:23]} (11. b4 $11 cxb3 12. axb3) 11... Nd5 {[%emt 0:14:14] Strongly threatening ...c5.} 12. Na3 $1 {[%emt 0:14:43]} Nb4 {[%emt 0:07:40]} 13. Qc3 {[%emt 0:00:07]} Nd5 {[%emt 0:05:37]} 14. Qc2 {[%emt 0:00:06]} Nb4 {[%emt 0:05:43]} 15. Qc3 {[%emt 0:00:05]} Nd5 {[%emt 0:01:37]} 16. Qc2 {[%emt 0:39:39] An uneventful encounter.   Weighted Error Value: White=0.26 (precise) /Black=0.24 (precise) .  Mistake:       	White=2     	---        Inaccurate:     	---       	Black=1      OK:         	White=5     	Black=1      Best:        	White=1     	Black=1      Strong:       	White=1     	---} 1/2-1/2